[Event "1st Semana Santa Torrevieja 2022"]
[Site "Torrevieja Alicante"]
[Date "2022.04.14"]
[Round "3.16"]
[White "Kanov, Nikola"]
[Black "Aagaard, Jacob"]
[Result "0-1"]
[ECO "B47"]
[WhiteElo "2201"]
[BlackElo "2465"]
[Annotator "TA"]
[PlyCount "102"]
[EventDate "2022.04.12"]
[EventType "swiss"]
[EventCountry "ESP"]
[SourceTitle "playchess.com"]
[Source "ChessBase"]
[SourceQuality "1"]
[TimeControl "5400+30"]

{[%evp 18,102,26,22,45,-116,39,41,35,36,46,0,0,0,43,26,37,26,39,34,53,5,85,48,52,20,52,0,0,-23,0,-5,0,-9,-8,-12,-4,-31,-11,-25,0,-138,-134,-140,-118,-223,-214,-312,-319,-298,-314,-300,-295,-393,-389,-341,-277,-517,-536,-535,-510,-612,-589,-606,-605,-674,-651,-726,-734,-921,-843,-1222,-1605,-1553,-1306,-1581,-1522,-1500,-1872,-2097,-1720,-4585,-3493,-3013,-3062,-2527,-2589]} 1. e4 {[%emt 0:00:03]} c5 {[%emt 0:00:16]} 2. Nf3 {[%emt 0:00:08]} e6 {[%emt 0:00:28]} 3. d4 {[%emt 0:00:09]} cxd4 {[%emt 0:00:09]} 4. Nxd4 {[%emt 0:00:09]} Nc6 {[%emt 0:00:13]} 5. Nc3 {[%emt 0:00:25]} Qc7 {[%emt 0:01:45]} 6. f4 {[%emt 0:01:06]} a6 {[%emt 0:00:37]} 7. Nxc6 {[%emt 0:00:21]} Qxc6 {[%emt 0:01:02]} 8. Bd3 {[%emt 0:01:07]} b5 {[%emt 0:06:35]} 9. Qe2 {[%emt 0:00:35]} Bb7 {[%emt 0:00:43]} 10. Bd2 {[%emt 0:00:52]} Rc8 {[%emt 0:04:41] B47: Sicilian: Taimanov: 5 Nc3 Qc7 6 f4, 6 g3 and 6 Be2.} 11. O-O-O $2 {[%emt 0:04:39] [#]} (11. a3 $14 {keeps the upper hand.}) 11... Bc5 $2 {[%emt 0:05:21]} (11... b4 $1 $17 {[%cal Rb4c3]} 12. Nb1 Qa4) 12. a3 $14 {[%emt 0:06:14]} Ne7 {[%emt 0:07:14] White is slightly better.} 13. Rhf1 {[%emt 0:05:48]} O-O {[%emt 0:07:18]} 14. Qh5 {[%emt 0:12:18]} (14. Kb1 $14 {is superior.}) 14... f5 $11 {[%emt 0:06:09]} 15. g4 {[%emt 0:03:46] [#]} g6 $146 {[%emt 0:03:34]} (15... Bxa3 $5 {[%cal Rb5b4]} 16. exf5 (16. bxa3 Qd6 $11) 16... b4 $11) ({Predecessor:} 15... b4 16. axb4 Bxb4 17. gxf5 exf5 18. Rg1 Qf6 19. e5 Qb6 20. Rg3 Rc6 21. Rdg1 Rg6 {0-1 (32) Dann,M (2475)-Vovk,Y (2588) Fagernes 2015}) 16. Qh4 {[%emt 0:05:54]} d5 {[%emt 0:05:35][%cal Rd5e4]} (16... fxe4 $2 17. Nxe4 Qxe4 18. Bxe4 $18) 17. exf5 {[%emt 0:20:59]} exf5 {[%emt 0:00:02]} 18. Rde1 {[%emt 0:06:12]} Rc7 {[%emt 0:03:05]} 19. Ne2 {[%emt 0:10:18]} (19. Kb1 $14) 19... Qb6 {[%emt 0:03:16]} (19... Bc8 $11 {remains equal.}) 20. Kb1 {[%emt 0:07:48]} Bc8 {[%emt 0:05:34]} 21. Ng3 {[%emt 0:05:10]} (21. b4 $5 {[%cal Rb4c5]} Bd6 22. g5 $11) 21... fxg4 {[%emt 0:04:20]} 22. f5 {[%emt 0:01:31]} ({White should play} 22. b4 $1 $14 Bd6 23. f5 Nxf5 24. Nxf5 gxf5 25. h3 (25. Bh6 Be7 $11)) 22... Nxf5 {[%emt 0:00:43]} 23. Bxf5 {[%emt 0:02:07]} gxf5 {[%emt 0:06:51]} 24. Bh6 {[%emt 0:01:24]} Qf6 {[%emt 0:00:15]} 25. Qh5 $132 {[%emt 0:00:21][%mdl 2048] White is not keeping still} Qg6 {[%emt 0:02:14]} 26. Bxf8 {[%emt 0:01:16]} Kxf8 {[%emt 0:03:59][%cal Bg8f8,Bf8f7,Bf7g6,Bg6g5,Bg5h6][%mdl 32]} 27. Re5 {[%emt 0:01:41]} Qxh5 {[%emt 0:02:12]} 28. Nxh5 {[%emt 0:00:01]} Bd6 {[%emt 0:00:35]} (28... Kf7 $5 {[%cal Rc5d6]}) 29. Re2 {[%emt 0:01:27] [#]} (29. Rxd5 $11 Bxh2 30. Rd2) 29... Kf7 $1 $17 {[%emt 0:01:07] Black converts the advantage convincingly.} 30. Rd2 {[%emt 0:00:56]} Re7 {[%emt 0:06:35] aiming for ...Kg6.} 31. Ng3 {[%emt 0:00:30]} (31. Kc1 $17) 31... Re5 $19 {[%emt 0:00:17]} 32. Rdf2 {[%emt 0:00:42]} (32. Kc1 $142) 32... Kg6 {[%emt 0:00:34]} 33. Ne2 {[%emt 0:00:29]} h5 {[%emt 0:01:33]} 34. Nf4+ {[%emt 0:00:16]} Kg5 {[%emt 0:01:08]} 35. h4+ {[%emt 0:00:36]} Kh6 {[%emt 0:01:36]} 36. Rd2 {[%emt 0:00:31]} Be7 {[%emt 0:01:44]} 37. Nxd5 $2 {[%emt 0:00:23]} (37. Ng2) 37... Bxh4 {[%emt 0:00:20] Black is clearly winning.} 38. Nf4 {[%emt 0:00:32]} Be7 {[%emt 0:02:07] Prevents Rd6+.} 39. a4 {[%emt 0:00:42]} h4 {[%emt 0:00:38]} 40. axb5 {[%emt 0:00:06]} axb5 {[%emt 0:00:01]} 41. b3 {[%emt 0:00:50]} Kg5 {[%emt 0:01:45]} 42. Nd5 {[%emt 0:00:29]} Bb7 {[%emt 0:01:46]} 43. c4 {[%emt 0:00:28]} bxc4 {[%emt 0:00:38]} 44. bxc4 {[%emt 0:00:01]} Bxd5 {[%emt 0:00:11]} 45. cxd5 {[%emt 0:00:26][%mdl 4096] Endgame KRR-KRB} Bd6 {[%emt 0:00:08]} 46. Kc2 {[%emt 0:00:23]} h3 {[%emt 0:00:33] And now ...g3 would win.} 47. Kb3 {[%emt 0:00:15]} g3 {[%emt 0:02:02][%cal Bg4g3,Bg3g2][%mdl 32] Hoping for ...f4.} 48. Kc4 {[%emt 0:00:18]} f4 {[%emt 0:01:06][%cal Bf5f4,Bf4f3][%mdl 32] ...g2 is the strong threat.} 49. Kb5 {[%emt 0:00:10]} g2 {[%emt 0:00:20]} 50. Rg1 {[%emt 0:00:06]} f3 {[%emt 0:00:20] White must now prevent ...Rf5.} 51. Kc6 {[%emt 0:00:03] [#]} Rf5 $1 {[%emt 0:00:14] Weighted Error Value: White=0.73/Black=0.26 (precise)} 0-1

[Event "1st Semana Santa Torrevieja 2022"]
[Site "Torrevieja Alicante"]
[Date "2022.04.15"]
[Round "4.1"]
[White "Moussard, Jules"]
[Black "Garrido Outon, Alex"]
[Result "1-0"]
[ECO "B92"]
[WhiteElo "2630"]
[BlackElo "2426"]
[Annotator "TA"]
[PlyCount "73"]
[EventDate "2022.04.12"]
[EventType "swiss"]
[EventCountry "ESP"]
[SourceTitle "playchess.com"]
[Source "ChessBase"]
[SourceQuality "1"]
[TimeControl "5400+30"]

{[%evp 16,73,16,0,0,6,16,12,29,21,29,21,26,26,39,33,35,31,41,40,60,56,58,53,54,45,74,73,94,70,115,120,187,187,234,227,299,295,280,237,339,339,311,306,585,587,577,542,517,523,1249,1228,1172,983,1398,1353,1116,937,784,693]} 1. e4 {[%emt 0:00:03]} c5 {[%emt 0:00:09]} 2. Nf3 {[%emt 0:00:19]} d6 {[%emt 0:00:10]} 3. d4 {[%emt 0:00:11]} cxd4 {[%emt 0:00:09]} 4. Nxd4 {[%emt 0:00:04]} Nf6 {[%emt 0:00:08]} 5. Nc3 {[%emt 0:00:06]} a6 {[%emt 0:00:07]} 6. Be2 {[%emt 0:00:05]} e5 {[%emt 0:00:30]} 7. Nb3 {[%emt 0:00:06]} Be7 {[%emt 0:04:01]} 8. O-O {[%emt 0:00:10]} O-O {[%emt 0:00:43]} 9. Re1 {[%emt 0:00:25]} Be6 {[%emt 0:07:02] B92: Sicilian Najdorf: 6 Be2.} 10. Be3 {[%emt 0:00:20]} Nbd7 {[%emt 0:01:41]} 11. a4 {[%emt 0:01:08][%cal Ba2a4,Ba4a5][%mdl 32]} Nb6 {[%emt 0:07:23] [#] The position is equal.} 12. a5 $146 {[%emt 0:15:55]} ({Predecessor:} 12. Nd2 d5 13. Bxb6 Qxb6 14. exd5 Nxd5 15. Nc4 Qc5 16. Nxd5 Bxd5 17. b4 Qd4 18. Qxd4 exd4 {1-0 (73) Gonzalez,R-Piccoli,F (2102) ICCF email 2017}) 12... Nc4 {[%emt 0:00:07]} 13. Bxc4 {[%emt 0:11:56]} Bxc4 {[%emt 0:00:06]} 14. Na4 {[%emt 0:02:40]} Nd7 {[%emt 0:13:38]} (14... Nxe4 $2 15. Bb6 Qe8 16. Rxe4 $18) 15. Nd2 {[%emt 0:03:43][%cal Bb3d2,Bd2f1,Bf1e3][%mdl 32]} Be6 {[%emt 0:00:49]} 16. c4 {[%emt 0:00:29]} Rc8 {[%emt 0:07:50]} 17. b3 {[%emt 0:03:32]} Bg5 {[%emt 0:04:07]} 18. Bxg5 {[%emt 0:03:40]} Qxg5 {[%emt 0:00:07]} 19. Nf1 {[%emt 0:00:42]} Rfd8 {[%emt 0:06:37]} 20. Ne3 {[%emt 0:03:45]} Nb8 {[%emt 0:00:51]} 21. Nb6 {[%emt 0:02:21] White stays focused until the end.} Rc7 {[%emt 0:01:01]} 22. Rc1 {[%emt 0:03:12]} g6 {[%emt 0:10:25]} 23. Ned5 {[%emt 0:05:22]} Bxd5 {[%emt 0:00:10]} (23... Rc5 $16) 24. cxd5 $18 {[%emt 0:00:14]} ({Less strong is} 24. exd5 Nd7 $11) ({But not} 24. Nxd5 $6 Rcc8 $16) 24... Rxc1 {[%emt 0:02:24]} (24... Re7 {was necessary.} 25. Rc3 f5) 25. Qxc1 {[%emt 0:00:43]} Qxc1 {[%emt 0:05:59]} 26. Rxc1 $16 {[%emt 0:00:09][%mdl 4096] Endgame KRN-KRN} Nd7 {[%emt 0:00:05]} 27. f3 {[%emt 0:05:38]} f5 {[%emt 0:01:54]} (27... Nxb6 $142 28. axb6 h5) 28. Rc8 $18 {[%emt 0:04:28]} Rxc8 {[%emt 0:01:14]} 29. Nxc8 {[%emt 0:00:05] KN-KN} Nc5 $2 {[%emt 0:07:07]} (29... fxe4 $2 30. fxe4 Kf8 31. Nxd6 $18) (29... Kg7 30. Kf2 (30. Nxd6 b6 $18) 30... fxe4 31. fxe4 Kf8) 30. Nxd6 {[%emt 0:01:46] White is clearly winning.} Nxb3 {[%emt 0:00:04]} 31. Nxb7 {[%emt 0:00:05] [#] aiming for d6.} Kf8 {[%emt 0:00:11]} 32. Kf2 {[%emt 0:01:02]} f4 {[%emt 0:02:03]} 33. Ke2 {[%emt 0:00:29]} g5 {[%emt 0:00:54]} 34. Kd3 {[%emt 0:00:41]} h5 {[%emt 0:00:50]} 35. h3 {[%emt 0:00:05]} Ke7 {[%emt 0:00:57]} 36. Kc3 {[%emt 0:00:36]} Nd4 {[%emt 0:00:10]} 37. Nc5 {[%emt 0:00:20] Weighted Error Value: White=0.02 (flawless) /Black=0.34} 1-0

[Event "1st Semana Santa Torrevieja 2022"]
[Site "Torrevieja Alicante"]
[Date "2022.04.15"]
[Round "4.2"]
[White "Minzer, Claudio Javier"]
[Black "Iturrizaga Bonelli, Eduardo"]
[Result "0-1"]
[ECO "E16"]
[WhiteElo "2427"]
[BlackElo "2595"]
[Annotator "TA"]
[PlyCount "96"]
[EventDate "2022.04.12"]
[EventType "swiss"]
[EventCountry "ESP"]
[SourceTitle "playchess.com"]
[Source "ChessBase"]
[SourceQuality "1"]
[TimeControl "5400+30"]

{[%evp 17,96,10,7,-6,40,47,32,-18,-18,-25,0,-22,-20,-17,0,-20,-20,-20,-7,-8,0,-99,-67,-83,-66,-88,-86,-127,-120,-147,-136,-118,-104,-109,-108,-151,-151,-265,-244,-289,-312,-302,-312,-307,-307,-299,-282,-408,-408,-411,-434,-423,-420,-412,-383,-727,-718,-695,-658,-743,-579,-947,-739,-686,-660,-672,-641,-935,-935,-914,-914,-935,-935,-928,-928,-921,-899,-852,-843,-802,-456]} 1. d4 {[%emt 1:31:00]} Nf6 {[%emt 0:03:58]} 2. c4 {[%emt 0:00:00]} e6 {[%emt 0:09:06]} 3. Nf3 {[%emt 0:00:00]} Bb4+ {[%emt 0:01:29]} 4. Bd2 {[%emt 0:00:00]} a5 {[%emt 0:00:14]} 5. Nc3 {[%emt 0:00:00]} b6 {[%emt 0:10:28]} 6. g3 {[%emt 0:00:00]} Bb7 {[%emt 0:00:50]} 7. Bg2 {[%emt 0:00:00]} O-O {[%emt 0:00:11]} 8. O-O {[%emt 0:00:00]} d6 {[%emt 0:05:46]} 9. Rc1 {[%emt 0:00:00]} Nbd7 {[%emt 0:01:42]} 10. Bg5 {[%emt 0:00:00] E16: Queen's Indian: 4 g3 Bb7 5 Bg2 Bb4+.} h6 $5 {[%emt 0:10:15][%mdl 4] An interesting side line.} (10... Bxc3 $11 11. Rxc3 h6 12. Bxf6 Qxf6) 11. Bxf6 $14 {[%emt 0:00:00]} Nxf6 {[%emt 0:00:03] [#]} 12. a3 $146 {[%emt 0:00:00]} (12. Na4 $14) ({Predecessor:} 12. Na4 d5 13. Ne5 Be7 14. c5 Ne4 15. f3 Nf6 16. cxb6 cxb6 17. Qb3 b5 18. Qxb5 {½-½ (33) Lan,Z (2361)-Andreikin,D (2706) China 2017}) 12... Bxc3 $11 {[%emt 0:00:16]} 13. Rxc3 {[%emt 0:00:00]} a4 {[%emt 0:00:20]} 14. Nd2 {[%emt 0:00:00]} Bxg2 {[%emt 0:02:08]} 15. Kxg2 {[%emt 0:00:00]} e5 {[%emt 0:01:32]} 16. e3 {[%emt 0:00:00]} Re8 {[%emt 0:02:57]} 17. Rc2 {[%emt 0:00:00]} Ra5 {[%emt 0:09:46]} (17... Qd7 {seems wilder.} 18. Nb1 exd4 19. exd4 d5) 18. d5 {[%emt 0:00:00]} e4 {[%emt 0:01:49]} 19. f4 {[%emt 0:00:00]} (19. Nb1 $11 {keeps the balance.}) 19... exf3+ {[%emt 0:00:53]} 20. Qxf3 {[%emt 0:00:00]} Re5 {[%emt 0:06:12]} 21. Rc3 {[%emt 0:00:00]} Qd7 {[%emt 0:10:12]} 22. Kg1 {[%emt 0:00:00] [#]} Ra8 $1 {[%emt 0:00:23]} 23. e4 {[%emt 0:00:00]} Rae8 {[%emt 0:01:32][%cal Rf6e4]} 24. Re3 {[%emt 0:00:00]} Nh7 {[%emt 0:05:43][%cal Of7f5]} 25. Rfe1 {[%emt 0:00:00]} f5 {[%emt 0:02:30]} 26. Qg2 {[%emt 0:00:00]} Qe7 {[%emt 0:01:06]} 27. h4 {[%emt 0:00:00]} (27. Nb1 $17) 27... Nf6 $19 {[%emt 0:00:24]} 28. Nf3 {[%emt 0:00:00]} Rxe4 {[%emt 0:00:14]} 29. Rxe4 {[%emt 0:00:00]} fxe4 {[%emt 0:04:03]} ({Inferior is} 29... Nxe4 30. Re2 $17) 30. Nd4 {[%emt 0:00:00]} Qe5 {[%emt 0:00:08]} 31. Nc6 {[%emt 0:00:00]} Qh5 {[%emt 0:00:05]} 32. Qf2 {[%emt 0:00:00]} (32. Nd4 {might work better.}) 32... b5 {[%emt 0:00:30]} 33. cxb5 {[%emt 0:00:05]} Qxd5 {[%emt 0:01:10]} 34. Qe2 {[%emt 0:00:10]} Qc5+ {[%emt 0:00:41]} 35. Kg2 {[%emt 0:00:40]} h5 {[%emt 0:01:13] [#] aiming for ...Ng4.} 36. Rd1 $2 {[%emt 0:01:07]} (36. Nb4 Ng4 37. Nd3 Qxb5 38. Nf4) 36... Ng4 {[%emt 0:02:38] Threatens to win with ...Ne3+. Black is clearly winning.} 37. Nd4 {[%emt 0:00:22]} d5 {[%emt 0:01:10] Strongly threatening ...Rf8.} 38. Qd2 {[%emt 0:02:48]} e3 {[%emt 0:01:49]} 39. Qb4 {[%emt 0:00:43]} Qxb4 {[%emt 0:00:18]} 40. axb4 {[%emt 0:00:02][%mdl 4096] Endgame KRN-KRN} Re4 {[%emt 0:00:35][%cal Oe4d4] White must now prevent ...Rxd4!} 41. Ne2 {[%emt 0:00:56]} Rxb4 {[%emt 0:00:23]} 42. Rxd5 {[%emt 0:00:13]} Rxb2 {[%emt 0:00:05]} 43. Kf3 {[%emt 0:00:10]} a3 {[%emt 0:00:14][%cal Ba4a3,Ba3a2][%mdl 32]} 44. Rd8+ {[%emt 0:00:28]} Kh7 {[%emt 0:00:08]} 45. Ra8 {[%emt 0:00:07]} a2 {[%emt 0:00:10]} 46. Ra6 {[%emt 0:01:13]} Kg8 {[%emt 0:00:37]} 47. Ra7 {[%emt 0:00:11]} Kf8 {[%emt 0:00:12]} 48. Nc3 {[%emt 0:14:15]} Ke7 {[%emt 0:06:22] Weighted Error Value: White=0.54/Black=0.16 (very precise)} 0-1

[Event "1st Semana Santa Torrevieja 2022"]
[Site "Torrevieja Alicante"]
[Date "2022.04.15"]
[Round "4.3"]
[White "Yuffa, Daniil"]
[Black "Vega Gutierrez, Sabrina"]
[Result "1-0"]
[ECO "E06"]
[WhiteElo "2576"]
[BlackElo "2385"]
[Annotator "TA"]
[PlyCount "69"]
[EventDate "2022.04.12"]
[EventType "swiss"]
[EventCountry "ESP"]
[SourceTitle "playchess.com"]
[Source "ChessBase"]
[SourceQuality "1"]
[TimeControl "5400+30"]

{[%evp 14,69,20,0,19,0,14,0,0,0,0,0,0,1,4,0,0,0,0,-18,0,0,0,0,30,13,24,0,0,0,0,-21,-26,-72,-70,-75,11,14,2,6,5,10,28,-14,-10,-285,-250,-221,554,551,806,802,819,819,819,819,792,789]} 1. d4 {[%emt 0:10:22]} d5 {[%emt 0:00:33]} 2. c4 {[%emt 0:00:26]} e6 {[%emt 0:00:08]} 3. Nf3 {[%emt 0:00:06]} c6 {[%emt 0:00:18]} 4. Nbd2 {[%emt 0:00:06]} Nf6 {[%emt 0:00:16]} 5. g3 {[%emt 0:00:03]} Be7 {[%emt 0:00:42]} 6. Bg2 {[%emt 0:00:14]} O-O {[%emt 0:00:08]} 7. O-O {[%emt 0:00:07]} b6 {[%emt 0:00:27]} 8. Qc2 {[%emt 0:00:04]} c5 {[%emt 0:00:25] E06: Closed Catalan: Early deviations.} 9. cxd5 {[%emt 0:03:02]} exd5 {[%emt 0:00:21]} 10. dxc5 {[%emt 0:00:16]} bxc5 {[%emt 0:00:11] The position is equal.} 11. e4 {[%emt 0:00:33]} Nc6 {[%emt 0:00:27]} 12. exd5 {[%emt 0:00:59]} Nxd5 {[%emt 0:00:12]} 13. a3 {[%emt 0:03:34]} Rb8 {[%emt 0:10:07]} 14. Nc4 {[%emt 0:05:08] [#]} Be6 $146 {[%emt 0:00:42]} ({Predecessor:} 14... Bf6 15. Rd1 Nd4 16. Nxd4 Bxd4 17. Be3 Nb6 18. Ne5 Bb7 19. Bxb7 Rxb7 20. Nc6 Qf6 21. Nxd4 cxd4 22. Rxd4 {1-0 (38) Chigaev,M (2631)-Garriga Cazorla,P (2472) Chess.com INT 2022}) 15. Nce5 {[%emt 0:02:59]} Nxe5 {[%emt 0:05:04]} 16. Nxe5 {[%emt 0:00:05] Black must now prevent Nc6.} Qc8 {[%emt 0:04:53] Prevents Nc6.} 17. Bd2 {[%emt 0:05:08]} Bf6 {[%emt 0:08:21]} 18. Rfe1 {[%emt 0:09:07]} Qb7 {[%emt 0:10:57]} (18... Qc7 $5 {[%cal Rf6e5]} 19. Nd3 Bd4 $11) 19. Rad1 {[%emt 0:07:44]} Qc7 {[%emt 0:20:40] Inhibits Ba5.} ({Not} 19... Qxb2 20. Qxb2 Rxb2 21. Bc1 Bxe5 22. Bxd5 (22. Rxe5 Nc3 $11) (22. Bxb2 Bxb2 23. Bxd5 Bf5 $16) 22... Bxd5 23. Bxb2 (23. Rxd5 Bc3 $14) (23. Rxe5 Bf3 $11) 23... Bxb2 24. Rxd5 $16) 20. f4 {[%emt 0:16:52]} (20. Nc4 $5 {[%cal Rg2d5]}) 20... c4 {[%emt 0:06:42]} 21. Bc1 {[%emt 0:03:03]} ({Don't blunder} 21. Qxc4 $2 Bxe5 22. Qxc7 (22. Bxd5 $2 Qxc4 23. Bxc4 Bd4+ 24. Be3 Bxe3+ 25. Rxe3 Bxc4 $19) 22... Bd4+ 23. Be3 Bxe3+ 24. Rxe3 Nxc7 $19) 21... Ne7 {[%emt 0:04:04]} 22. Kh1 {[%emt 0:06:37]} Rfd8 {[%emt 0:00:52]} 23. Bd2 {[%emt 0:02:42]} (23. Rxd8+ $11 Rxd8 24. Bd2) 23... Bxe5 $17 {[%emt 0:15:22]} 24. Rxe5 {[%emt 0:00:04] [#]} Bd5 {[%emt 0:00:09]} (24... Nc6 $1 $17 {[%cal Rc6e5]} 25. Ree1 Bg4) 25. Bc3 $36 {[%emt 0:02:53][%mdl 2048] White is pushing.} Bxg2+ {[%emt 0:01:52]} 26. Kxg2 {[%emt 0:00:06]} Qc6+ {[%emt 0:00:28]} 27. Kg1 {[%emt 0:00:41]} Nd5 {[%emt 0:09:02]} 28. Qe4 {[%emt 0:06:44]} Qb6+ {[%emt 0:00:13]} 29. Bd4 $2 {[%emt 0:05:03][%mdl 8192]} (29. Kh1 $1 $11 Nxc3 30. Rxd8+ Qxd8 31. bxc3) 29... Nf6 $19 {[%emt 0:00:03]} 30. Qe3 {[%emt 0:00:32] [#]} Ng4 $4 {[%emt 0:01:07][%mdl 8192]} (30... Qxb2 $1 $19 {[%cal Oc4c3][%mdl 512] Threatens to win with ...c3!} 31. a4 (31. Bxb2 $2 {perishes.} Rxd1+ 32. Kg2 Rxb2+ 33. Kh3 h5 $19) (31. g4 Nxg4) 31... Qc2) 31. Qe2 $18 {[%emt 0:00:23] White is clearly winning.} Qg6 {[%emt 0:00:43]} 32. Rg5 {[%emt 0:00:22]} Rxd4 {[%emt 0:00:30]} 33. Rxg6 {[%emt 0:00:53]} Rxd1+ {[%emt 0:00:15]} 34. Qxd1 {[%emt 0:00:04]} hxg6 {[%emt 0:00:24]} 35. Qxg4 {[%emt 0:00:04] Weighted Error Value: White=0.32/Black=0.42} 1-0

[Event "1st Semana Santa Torrevieja 2022"]
[Site "Torrevieja Alicante"]
[Date "2022.04.15"]
[Round "4.4"]
[White "Dardha, Daniel"]
[Black "Cruz, Jonathan"]
[Result "1-0"]
[ECO "D94"]
[WhiteElo "2541"]
[BlackElo "2363"]
[Annotator "TA"]
[PlyCount "69"]
[EventDate "2022.04.12"]
[EventType "swiss"]
[EventCountry "ESP"]
[SourceTitle "playchess.com"]
[Source "ChessBase"]
[SourceQuality "1"]
[TimeControl "5400+30"]

{[%evp 18,69,54,48,60,49,57,54,50,48,53,47,47,17,54,57,45,52,112,119,95,79,110,102,104,100,118,111,136,134,186,192,262,264,357,357,561,530,658,528,1208,1031,1106,854,702,696,638,526,12844,12844,12845,12845,12845,12846]} 1. d4 {[%emt 0:00:06]} Nf6 {[%emt 0:01:41]} 2. c4 {[%emt 0:00:06]} c6 {[%emt 0:01:00]} 3. Nf3 {[%emt 0:00:59]} d5 {[%emt 0:00:50]} 4. e3 {[%emt 0:00:07]} g6 {[%emt 0:02:00]} 5. Nc3 {[%emt 0:00:31]} Bg7 {[%emt 0:00:45]} 6. Be2 {[%emt 0:01:48]} O-O {[%emt 0:04:59]} 7. O-O {[%emt 0:00:11]} Nbd7 {[%emt 0:03:43]} 8. cxd5 {[%emt 0:09:34]} Nxd5 {[%emt 0:04:50]} 9. e4 {[%emt 0:03:35]} Nxc3 {[%emt 0:03:13]} 10. bxc3 {[%emt 0:00:03]} e5 {[%emt 0:00:22] D94: Grünfeld: 4 Nf3 Bg7 5 e3.} 11. Rb1 {[%emt 0:03:04] [#]} h6 $146 {[%emt 0:13:46]} ({Predecessor:} 11... Re8 12. Bc4 Nb6 13. Bxf7+ Kxf7 14. Ng5+ Kg8 15. Qb3+ Nd5 16. exd5 cxd5 17. dxe5 Rxe5 18. Nf3 {1-0 (18) Chuchelov,V (2595)-Geirnaert,S (2368) Netherlands 2010}) 12. Re1 {[%emt 0:09:47]} Re8 {[%emt 0:05:26] White is slightly better.} 13. Bd3 {[%emt 0:02:38]} b5 {[%emt 0:01:33]} 14. Be3 {[%emt 0:01:18]} a6 {[%emt 0:01:35]} 15. h4 {[%emt 0:05:26]} exd4 {[%emt 0:12:44]} 16. cxd4 {[%emt 0:00:21]} c5 {[%emt 0:00:02]} 17. dxc5 {[%emt 0:01:08]} Bb7 {[%emt 0:00:15]} ({Better is} 17... Ne5 $14 18. Nxe5 Bxe5) 18. a4 $16 {[%emt 0:02:49]} Qe7 {[%emt 0:05:43]} 19. Rc1 {[%emt 0:10:07]} Rec8 {[%emt 0:01:11][%cal Rd7c5]} 20. axb5 {[%emt 0:04:22] c6 is the strong threat.} Nxc5 {[%emt 0:00:18]} 21. bxa6 {[%emt 0:00:28]} Nxa6 {[%emt 0:06:12]} 22. Rxc8+ {[%emt 0:05:14]} (22. Bc4 {feels hotter.} Nb4 23. Qb3 Na2 24. Rc2) 22... Rxc8 {[%emt 0:00:13]} 23. h5 $1 {[%emt 0:00:07][%cal Bh4h5,Bh5g6,Bg6f7][%mdl 32]} Nc5 {[%emt 0:04:29]} (23... gxh5 $16 24. Nd4 Bxd4 25. Bxd4 Nb4) 24. hxg6 $18 {[%emt 0:01:54]} Nxd3 {[%emt 0:01:25] [#]} (24... fxg6 {was worth a try.} 25. Bxc5 Rxc5) 25. gxf7+ $1 {[%emt 0:00:23]} ({Don't play} 25. Qxd3 $6 fxg6 26. Bd4 Rc7 $16) 25... Kf8 {[%emt 0:00:45]} 26. Qxd3 {[%emt 0:00:29] Chess con chili.} Bxe4 {[%emt 0:00:08]} (26... Kxf7 $142 27. Bd4 Rc7 28. Bxg7 Kxg7) 27. Qa6 {[%emt 0:04:15] White is clearly winning.} Bb7 {[%emt 0:02:29]} 28. Qb6 {[%emt 0:03:40]} Bxf3 {[%emt 0:08:16] [#]} 29. Bc5 $1 {[%emt 0:00:27][%mdl 512]} Rxc5 {[%emt 0:00:14]} 30. Qb8+ {[%emt 0:03:38]} Kxf7 {[%emt 0:00:16]} 31. Rxe7+ {[%emt 0:00:07]} Kxe7 {[%emt 0:00:18]} 32. Qa7+ {[%emt 0:00:06][%mdl 64] Skewer} Ke8 {[%emt 0:05:30] ( -> ...Rc1+)} 33. Qxc5 {[%emt 0:01:00]} Bg4 {[%emt 0:00:25]} 34. Qe3+ {[%emt 0:00:09]} Kd8 {[%emt 0:00:47]} 35. Qb6+ {[%emt 0:00:06] Weighted Error Value: White=0.06 (flawless) /Black=0.41} 1-0